bitfinex/quotes_SOLUSD_20241215
["timestamp","ask_amount","ask_price","bid_price","bid_amount"]
[1734252163934,0.25098,217.75,217.69,30.0]
[1734252164712,0.25098,217.75,217.66,30.0]
[1734252166020,6.543,217.76,217.67,8.76568213]
[1734252166327,20.3901,217.78,217.69,8.07668031]
[1734252167128,20.3901,217.78,217.69,8.76554363]
[1734252167297,20.3901,217.78,217.69,8.07668031]
[1734252168032,20.3901,217.78,217.7,30.0]
[1734252168395,6.543,217.81,217.71,8.76555014]
[1734252168722,6.543,217.81,217.72,8.07668031]
[1734252169505,6.543,217.81,217.73,30.0]
[1734252170017,6.543,217.85,217.73,30.0]
[1734252170018,8.92493891,217.88,217.76,8.07668031]
[1734252170410,0.12549,217.87,217.74,8.76545727]
[1734252170597,0.12549,217.87,217.74,8.07668031]
[1734252171212,24.027864,217.87,217.74,8.07668031]
[1734252171540,0.25098,217.83,217.74,8.07668031]
[1734252177241,0.25098,217.83,217.72,20.0]
[1734252177541,0.25098,217.83,217.74,38.07668031]
[1734252178122,0.25098,217.83,217.74,30.0]
[1734252179639,0.25098,217.83,217.74,38.07668031]
[1734252180242,0.25098,217.83,217.75,8.07668031]
[1734252182126,20.0,217.84,217.75,8.07668031]
[1734252182329,20.0,217.85,217.76,38.07668031]
[1734252182832,20.0,217.85,217.77,8.07668031]
[1734252184648,20.0,217.85,217.76,8.07668031]
[1734252184954,20.0,217.85,217.75,8.07668031]
[1734252189238,20.0,217.85,217.76,30.0]
[1734252190668,20.0,217.85,217.76,38.07668031]
[1734252191473,12.6919,217.88,217.78,8.07668031]
[1734252191641,0.25098,217.87,217.78,8.07668031]
[1734252192050,0.25098,217.87,217.78,38.07668031]
[1734252192664,0.25098,217.87,217.78,30.0]
[1734252193358,0.25098,217.87,217.77,8.76529071]
[1734252194264,3.01099816,217.87,217.77,8.07668031]
[1734252194654,3.01099816,217.87,217.78,8.07668031]
[1734252195346,12.6919,217.88,217.81,8.07668031]
[1734252195545,6.1489,217.88,217.82,8.07668031]
[1734252195941,6.3628,217.93,217.82,8.07668031]
[1734252196141,0.12549,217.91,217.82,8.07668031]
[1734252196348,8.07668,217.89,217.82,8.07668031]
[1734252196563,8.07668,217.89,217.82,38.07668031]
[1734252197164,0.12549,217.91,217.82,30.0]
[1734252197349,20.0,217.89,217.82,30.0]
[1734252197553,0.25098,217.89,217.82,30.0]
[1734252199366,20.25098,217.9,217.82,30.0]
[1734252201854,20.0,217.9,217.82,30.0]
[1734252202055,20.0,217.9,217.83,8.07668031]
[1734252202360,0.12549,217.92,217.83,8.07668031]
[1734252202864,0.25098,217.92,217.83,8.07668031]
[1734252203268,20.0,217.9,217.83,8.07668031]
[1734252204154,20.0,217.9,217.83,8.76512115]
[1734252204388,20.0,217.9,217.82,30.0]
[1734252204389,20.0,217.9,217.82,38.07668031]
[1734252204692,20.0,217.9,217.82,30.0]
[1734252205255,20.0,217.9,217.81,8.07668031]
[1734252206697,20.0,217.9,217.82,8.07668031]
[1734252208161,20.0,217.9,217.83,30.0]
[1734252209863,20.0,217.9,217.82,8.07668031]
[1734252212791,20.0,217.9,217.83,30.0]
[1734252213666,20.0,217.9,217.82,8.07668031]
[1734252215393,20.0,217.9,217.81,8.07668031]
[1734252216608,20.0,217.9,217.84,8.07668031]
[1734252216771,20.0,217.9,217.83,38.07668031]
[1734252217105,20.0,217.9,217.83,30.0]
[1734252220294,20.0,217.9,217.83,37.39108031]
[1734252220496,20.0,217.9,217.83,38.07954804]
[1734252221370,20.0,217.9,217.83,37.39108031]
[1734252223676,20.0,217.9,217.84,8.07668031]
[1734252223902,20.0,217.9,217.84,38.76508997]
[1734252224215,0.25098,217.92,217.84,38.76508997]
[1734252224531,18.356562,217.93,217.84,38.76508997]
[1734252224803,18.356562,217.93,217.85,8.07668031]
[1734252225975,18.356562,217.93,217.79,20.0]
[1734252226183,18.356562,217.93,217.85,8.07668031]
[1734252226388,18.356562,217.93,217.81,30.0]
[1734252226389,18.356562,217.93,217.86,8.07668031]
[1734252229307,18.356562,217.93,217.88,8.07668031]
[1734252229474,18.356562,217.93,217.89,8.07668031]
[1734252229676,18.356562,217.93,217.88,8.07668031]
[1734252229982,18.356562,217.93,217.87,8.07668031]
[1734252230204,18.356562,217.93,217.88,8.07668031]
[1734252230790,18.356562,217.93,217.89,30.0]
[1734252232094,24.027864,217.95,217.81,0.68830684]
[1734252232300,24.027864,217.95,217.85,8.07668031]
[1734252232623,24.027864,217.95,217.84,30.0]
[1734252233220,0.25098,217.91,217.84,30.0]
[1734252233877,0.12549,217.87,217.84,30.0]
[1734252234083,0.25098,217.87,217.84,30.0]
[1734252234978,0.25098,217.87,217.8,8.07668031]
[1734252235207,0.25098,217.87,217.81,30.0]
[1734252237326,24.027864,217.87,217.81,30.0]
[1734252237540,0.25098,217.83,217.76,8.07668031]
[1734252237715,0.25098,217.83,217.7,0.68869427]
[1734252237716,0.25098,217.83,217.78,30.0]
[1734252238626,0.25098,217.83,217.76,8.07668031]
[1734252238810,0.25098,217.83,217.77,8.07668031]
[1734252239718,1.8216303,217.89,217.78,8.07668031]
[1734252239909,0.12549,217.84,217.78,8.07668031]
[1734252240110,0.12549,217.84,217.72,30.0]
[1734252240111,20.0,217.85,217.79,8.76529882]
[1734252240310,20.0,217.85,217.79,8.07668031]
[1734252240512,0.12549,217.92,217.79,8.07668031]
[1734252241323,24.027864,217.92,217.79,8.07668031]
[1734252241521,0.25098,217.88,217.79,8.07668031]
[1734252243607,0.25098,217.88,217.8,8.07668031]
[1734252244105,0.25098,217.88,217.81,30.0]
[1734252245940,0.25098,217.88,217.79,8.07668031]
[1734252246511,0.25098,217.88,217.75,0.6885879]
[1734252246817,0.25098,217.88,217.79,8.07668031]
[1734252247541,0.25098,217.88,217.77,8.76527645]
[1734252248439,0.25098,217.84,217.76,8.07668031]
[1734252248629,0.25098,217.84,217.75,8.07668031]
[1734252249015,0.25098,217.84,217.76,30.0]
[1734252249217,0.25098,217.84,217.75,8.07668031]
[1734252249828,0.25098,217.84,217.72,20.68874533]
[1734252250030,0.25098,217.84,217.75,8.07668031]
[1734252250941,0.25098,217.84,217.76,8.07668031]
[1734252251144,0.25098,217.84,217.76,38.07668031]
[1734252251515,0.25098,217.84,217.76,30.0]
[1734252251715,0.25098,217.84,217.74,8.07668031]
[1734252251915,24.027864,217.84,217.74,8.07668031]
[1734252252119,24.027864,217.84,217.75,30.0]
[1734252252633,24.027864,217.84,217.73,8.07668031]
[1734252253143,24.027864,217.84,217.74,8.07668031]
[1734252255741,24.027864,217.84,217.75,30.0]
[1734252256347,26.75162222,217.84,217.75,30.0]
[1734252259727,0.25098,217.8,217.75,30.0]
[1734252260132,24.027864,217.8,217.75,30.0]
[1734252260357,0.25098,217.76,217.75,30.0]
[1734252260859,0.25098,217.76,217.68,8.07668031]
[1734252261054,0.25098,217.76,217.7,30.0]
[1734252262057,24.027864,217.76,217.7,30.0]
[1734252262247,0.25098,217.72,217.65,8.07668031]
[1734252262581,0.25098,217.72,217.64,8.07668031]
[1734252262936,0.25098,217.72,217.65,30.0]
[1734252263475,0.25098,217.72,217.65,38.07668031]
[1734252263971,20.0,217.8,217.67,8.07668031]
[1734252264151,0.12549,217.75,217.67,8.07668031]
[1734252264344,20.0,217.76,217.7,8.07668031]
[1734252264672,20.25098,217.83,217.7,8.07668031]
[1734252264882,22.0795227,217.83,217.7,8.07668031]
[1734252265056,20.0,217.82,217.7,8.07668031]
[1734252265355,0.25098,217.81,217.69,8.07668031]
[1734252265546,24.027864,217.81,217.69,8.07668031]
[1734252265755,0.25098,217.77,217.69,8.07668031]
[1734252266351,0.25098,217.77,217.64,0.68892531]
[1734252266352,0.25098,217.77,217.68,8.07668031]
[1734252270765,0.25098,217.77,217.69,30.0]
[1734252270945,5.0,217.9,217.75,8.07668031]
[1734252271144,86.7,217.92,217.75,8.07668031]
[1734252271539,0.12549,217.83,217.74,8.07668031]
[1734252272051,0.25098,217.83,217.74,8.07668031]
[1734252273339,20.25098,217.83,217.74,8.07668031]
[1734252275138,20.25098,217.83,217.75,30.0]
[1734252277846,23.01385763,217.83,217.75,30.0]
[1734252278045,23.01385763,217.83,217.74,8.07668031]
[1734252278463,23.01385763,217.83,217.72,8.07668031]
[1734252278655,23.01385763,217.83,217.72,38.07668031]
[1734252281053,0.12549,217.81,217.72,38.07668031]
[1734252281254,0.25098,217.81,217.72,38.07668031]
[1734252282673,0.25098,217.81,217.73,8.07668031]
[1734252284576,20.25098,217.78,217.72,30.0]
[1734252285255,20.25098,217.78,217.72,38.07668031]
[1734252285575,20.25098,217.78,217.72,8.07668031]
[1734252286769,20.25098,217.78,217.73,8.07668031]
[1734252287879,20.25098,217.78,217.72,8.07668031]
[1734252288259,20.25098,217.78,217.67,2.22685044]
[1734252288460,20.25098,217.78,217.7,8.07668031]
[1734252289178,20.25098,217.78,217.71,8.07668031]
[1734252292313,20.25098,217.78,217.72,8.07668031]
[1734252293885,20.25098,217.78,217.68,0.68889112]
[1734252294093,20.25098,217.78,217.7,30.0]
[1734252294508,20.25098,217.78,217.7,38.07668031]
[1734252294717,20.25098,217.78,217.7,30.0]
[1734252294897,0.12549,217.73,217.7,30.0]
[1734252296701,20.0,217.74,217.7,30.0]
[1734252297011,20.0,217.74,217.67,8.07668031]
[1734252297401,20.0,217.74,217.68,8.07668031]
[1734252297804,20.0,217.74,217.68,30.0]
[1734252299894,20.0,217.74,217.68,38.07668031]
[1734252300094,20.0,217.74,217.68,30.0]
[1734252300290,20.0,217.72,217.68,30.0]
[1734252301017,20.0,217.72,217.64,30.0]
[1734252301321,20.0,217.72,217.64,38.07668031]
[1734252302202,20.0,217.72,217.65,8.07668031]
[1734252303295,20.0,217.72,217.66,8.07668031]
[1734252303624,6.4951,217.75,217.68,8.07668031]
[1734252305313,0.12549,217.74,217.67,8.07668031]
[1734252305514,20.0,217.71,217.63,8.07668031]
[1734252305714,0.12549,217.7,217.62,8.07668031]
[1734252305902,0.12549,217.7,217.64,8.07668031]
[1734252306906,20.0,217.71,217.66,8.07668031]
[1734252308004,20.0,217.71,217.67,8.07668031]
[1734252308333,18.370408,217.78,217.7,8.07668031]
[1734252308517,18.370408,217.78,217.64,1.5206]
[1734252308724,18.370408,217.78,217.69,8.07668031]
[1734252309041,10.81394375,217.79,217.7,8.07668031]
[1734252309205,0.12549,217.78,217.7,8.07668031]
[1734252309619,20.0,217.75,217.65,0.6889773]
[1734252309820,20.0,217.75,217.7,8.07668031]
[1734252310036,20.0,217.75,217.69,8.07668031]
[1734252310327,0.12549,217.74,217.67,30.0]
[1734252310923,0.12549,217.74,217.66,8.07668031]
[1734252311510,0.12549,217.74,217.67,8.07668031]
[1734252312110,20.0,217.75,217.7,8.07668031]
[1734252312740,20.0,217.78,217.7,8.07668031]
[1734252313107,2.73726375,217.79,217.72,8.07668031]
[1734252313512,2.73726375,217.79,217.71,8.07668031]
[1734252314222,20.0,217.78,217.72,30.0]
[1734252315628,20.0,217.78,217.71,8.07668031]
[1734252317227,20.0,217.78,217.72,38.07668031]
[1734252317730,20.0,217.78,217.72,30.0]
[1734252318432,6.1049,217.81,217.75,8.07668031]
[1734252320933,29.19547,217.86,217.76,8.07668031]
[1734252320934,20.0,217.82,217.76,8.07668031]
[1734252322433,8.07668,217.85,217.78,8.07668031]
[1734252322617,8.07668,217.85,217.72,0.68877878]
[1734252322618,8.07668,217.85,217.79,8.07668031]
[1734252322824,9.20922302,217.86,217.79,8.07668031]
[1734252324528,20.0,217.84,217.79,38.07668031]
[1734252324928,8.07668,217.88,217.79,38.07668031]
[1734252325142,20.0,217.85,217.79,38.07668031]
[1734252325645,20.0,217.85,217.79,30.0]
[1734252326221,20.0,217.88,217.79,38.07668031]
[1734252326421,20.0,217.88,217.8,8.07668031]
[1734252326638,20.0,217.87,217.8,8.07668031]
[1734252329670,20.0,217.88,217.8,8.07668031]
[1734252329947,20.0,217.87,217.8,8.07668031]
[1734252334962,20.0,217.87,217.8,38.07668031]
[1734252335763,20.0,217.87,217.8,30.0]
[1734252336581,20.0,217.87,217.8,38.07668031]
[1734252337038,20.0,217.87,217.81,8.07668031]
[1734252337459,20.0,217.87,217.81,38.07668031]
[1734252339042,20.0,217.88,217.81,38.07668031]
[1734252340151,2.78455018,217.89,217.81,38.07668031]
[1734252340347,18.357749,217.93,217.85,8.07668031]
[1734252340566,18.357749,217.93,217.84,8.07668031]
[1734252340774,6.7075,217.96,217.84,8.07668031]
[1734252341064,18.8833099,217.95,217.84,8.07668031]
[1734252341670,23.776884,217.94,217.84,8.07668031]
[1734252342250,0.12549,217.93,217.84,8.07668031]
[1734252342459,0.12549,217.93,217.85,30.0]
[1734252343043,2.86962628,217.93,217.85,30.0]
[1734252343947,2.86962628,217.93,217.85,38.07668031]
[1734252345061,18.8833099,217.95,217.85,39.74138031]
[1734252345267,20.0,217.92,217.85,39.74138031]
[1734252345765,0.12549,217.94,217.86,8.07668031]
[1734252345961,0.12549,217.94,217.86,38.07668031]
[1734252346164,0.12549,217.94,217.86,8.07668031]
[1734252346587,20.0,217.93,217.86,8.07668031]
[1734252347085,20.0,217.93,217.87,8.07668031]
[1734252347266,3.26361585,217.95,217.88,8.07668031]
[1734252348156,3.26361585,217.95,217.89,8.07668031]
[1734252348356,0.5273149,217.95,217.89,8.07668031]
[1734252349075,0.5273149,217.95,217.88,8.07668031]
[1734252349275,0.5273149,217.95,217.87,8.07668031]
[1734252353179,0.5273149,217.95,217.88,30.0]
[1734252354571,0.5273149,217.95,217.87,8.07668031]
[1734252354781,0.5273149,217.95,217.88,8.07668031]
[1734252359677,0.5273149,217.95,217.89,30.0]
[1734252361188,0.5273149,217.95,217.92,8.07668031]
[1734252362582,0.5273149,217.95,217.91,8.07668031]
[1734252363290,0.5273149,217.95,217.92,8.07668031]
[1734252364068,0.5273149,217.95,217.86,0.68826885]
[1734252364069,0.5273149,217.95,217.93,8.07668031]
[1734252365783,0.5273149,217.95,217.94,8.07668031]
[1734252366877,0.5273149,217.95,217.94,9.59718031]
[1734252367494,0.5273149,217.95,217.94,39.59718031]
[1734252370371,0.5273149,217.95,217.94,9.59718031]
[1734252373367,0.5273149,217.95,217.94,45.86488031]
[1734252375387,18.344183,218.06,217.95,24.027864]
[1734252375587,20.0,218.08,218.03,8.07668031]
[1734252376183,6.5732,218.11,218.05,8.07668031]
[1734252376385,2.69785782,218.13,218.05,8.07668031]
[1734252376574,18.340316,218.11,218.06,8.07668031]
[1734252376784,4.57727515,218.15,218.06,8.07668031]
[1734252377584,6.5732,218.14,218.06,8.07668031]
[1734252378181,20.0,218.11,218.06,8.07668031]
[1734252381505,24.027864,218.1,218.01,1.5283]
[1734252381805,24.027864,218.1,218.03,30.0]
[1734252382029,20.0,218.07,218.03,30.0]
[1734252383404,20.0,218.07,218.0,8.07668031]
[1734252383784,24.027864,218.06,217.99,8.07668031]
[1734252383981,24.027864,218.06,217.96,1.5132]
[1734252384279,24.027864,218.06,217.99,8.07668031]
[1734252386205,24.027864,218.06,218.0,30.0]
[1734252387590,24.027864,218.06,217.99,8.07668031]
[1734252388321,24.027864,218.06,217.96,1.5132]
[1734252388525,20.0,218.03,217.97,30.0]
[1734252389619,20.0,218.03,217.97,38.07668031]
[1734252389786,20.0,218.03,217.97,8.07668031]
[1734252389979,20.0,218.03,217.98,8.07668031]
[1734252390181,20.0,218.06,218.0,8.07668031]
[1734252391995,20.0,218.06,217.99,8.07668031]
[1734252393503,20.0,218.06,217.96,1.5132]
[1734252393689,20.0,218.06,217.98,8.07668031]
[1734252394583,20.0,218.06,218.0,8.07668031]
[1734252395590,20.0,218.06,218.01,8.07668031]
[1734252395990,9.38564356,218.14,218.04,8.07668031]
[1734252396187,9.38564356,218.14,218.05,8.07668031]
[1734252396392,0.12549,218.13,218.05,8.07668031]
[1734252396607,9.38564356,218.14,218.05,8.07668031]
[1734252397002,0.12549,218.13,218.05,8.07668031]
[1734252397301,20.0,218.11,217.99,30.68796534]
[1734252397500,20.0,218.11,218.03,8.07668031]
[1734252398288,20.0,218.11,218.04,8.07668031]
[1734252398993,20.0,218.11,217.99,30.68791962]
[1734252399317,20.0,218.11,218.03,8.07668031]
[1734252400492,20.0,218.11,218.04,8.07668031]
[1734252403814,20.0,218.11,218.03,8.07668031]
[1734252404824,20.0,218.11,218.04,8.07668031]
[1734252405394,20.0,218.11,218.05,8.07668031]
[1734252407316,20.0,218.11,217.99,0.68792086]
[1734252407529,20.0,218.11,218.05,8.07668031]
[1734252408801,20.0,218.11,218.01,0.68783543]
[1734252408996,20.0,218.11,218.04,8.07668031]
[1734252410126,20.0,218.11,218.0,30.0]
[1734252410316,20.0,218.11,218.02,8.07668031]
[1734252410492,20.0,218.11,218.03,38.07668031]
[1734252412022,20.0,218.11,218.03,30.0]
[1734252412198,20.0,218.08,218.03,30.0]
[1734252412525,24.027864,218.13,218.03,30.0]
[1734252413720,20.0,218.1,218.03,30.0]
[1734252415111,20.0,218.1,218.01,8.07668031]
[1734252415522,20.0,218.1,218.03,8.07668031]
[1734252416612,0.12549,218.13,218.03,8.07668031]
[1734252416830,0.25098,218.13,218.03,8.07668031]
[1734252417134,20.0,218.11,218.03,8.07668031]
[1734252417709,22.78271466,218.11,218.04,30.0]
[1734252418600,20.0,218.12,218.05,8.07668031]
[1734252419025,20.0,218.12,218.04,38.07668031]
[1734252419212,0.12549,218.11,218.04,30.0]
[1734252420005,0.25098,218.11,218.04,30.0]
[1734252422918,0.25098,218.11,218.04,38.07668031]
[1734252424217,20.0,218.12,218.06,8.07668031]
[1734252426122,8.91643891,218.2,218.09,8.07668031]
[1734252426326,6.1404,218.2,218.09,8.07668031]
[1734252427706,20.5663657,218.17,218.08,8.07668031]
[1734252428130,23.33359187,218.17,218.08,8.07668031]
[1734252428328,23.33359187,218.17,218.09,8.07668031]
[1734252429402,23.33359187,218.17,218.08,8.07668031]
[1734252430422,20.0,218.13,218.06,8.07668031]
[1734252430616,20.0,218.13,218.0,0.68782933]
[1734252430953,20.0,218.13,218.05,8.07668031]
[1734252431614,20.0,218.13,218.06,8.07668031]
[1734252433223,20.0,218.13,218.07,8.07668031]
[1734252434349,23.33359187,218.17,218.07,8.07668031]
[1734252435106,23.33359187,218.17,218.08,30.0]
[1734252436729,23.33359187,218.17,218.08,38.07668031]
[1734252438932,20.5663657,218.17,218.08,38.07668031]
[1734252439552,0.5663657,218.17,218.12,8.07668031]
[1734252439821,0.5663657,218.17,218.13,8.07668031]
[1734252440474,0.5663657,218.17,218.09,0.68763243]
[1734252440637,0.5663657,218.17,218.1,8.07668031]
[1734252440966,0.5663657,218.17,218.12,8.07668031]
[1734252441331,0.5663657,218.17,218.11,8.07668031]
[1734252441748,0.5663657,218.17,218.12,30.0]
[1734252442460,0.12549,218.16,218.12,30.0]
[1734252442659,0.12549,218.16,218.07,8.07668031]
[1734252442838,20.0,218.15,218.08,30.0]
[1734252445466,20.0,218.15,218.07,8.07668031]
[1734252446457,0.12549,218.14,218.06,8.07668031]
[1734252446674,0.12549,218.14,218.07,30.0]
[1734252447566,0.12549,218.14,218.06,8.07668031]
[1734252448481,0.12549,218.14,218.07,8.07668031]
[1734252450584,0.12549,218.14,218.06,8.07668031]
[1734252452458,0.12549,218.14,218.07,30.0]
[1734252454188,0.12549,218.14,218.06,8.07668031]
[1734252456986,0.12549,218.14,218.01,0.68778061]
[1734252457175,0.12549,218.14,218.05,8.07668031]
[1734252458366,20.0,218.11,218.02,8.07668031]
[1734252458560,20.0,218.11,218.04,30.0]
[1734252458760,0.25098,218.1,218.04,30.0]
[1734252460171,20.0,218.11,218.04,30.0]
[1734252460490,20.0,218.11,218.05,8.07668031]
[1734252460860,20.0,218.11,218.03,8.07668031]
[1734252461085,20.0,218.11,218.04,30.0]
[1734252463983,20.0,218.11,218.03,30.0]
[1734252464198,20.0,218.11,218.03,38.07668031]
[1734252464670,20.0,218.11,218.03,8.07668031]
[1734252465190,20.0,218.11,218.02,8.07668031]
[1734252469001,20.0,218.15,218.04,8.07668031]
[1734252469818,0.12549,218.14,218.05,8.07668031]
[1734252470386,0.12549,218.14,218.04,8.07668031]
[1734252470582,0.12549,218.14,218.05,30.0]
[1734252473398,20.0,218.11,218.05,30.0]
[1734252473700,20.0,218.11,218.03,30.0]
[1734252476084,24.027864,218.14,218.03,30.0]
[1734252476085,0.12549,218.06,218.03,30.0]
[1734252476472,0.12549,218.06,217.97,8.07668031]
[1734252477189,0.12549,218.06,217.96,8.07668031]
[1734252477585,24.027864,218.06,217.93,15.39644239]
[1734252477780,20.0,218.03,217.95,8.07668031]
[1734252479684,20.0,218.03,217.96,30.0]
[1734252480092,24.027864,218.06,217.96,30.0]
[1734252480291,20.0,218.03,217.96,38.07668031]
[1734252483584,20.0,218.03,217.96,30.0]
[1734252483989,20.0,218.03,217.95,8.07668031]
[1734252484986,20.0,218.03,217.96,8.07668031]
[1734252487096,20.0,218.03,217.97,30.0]
[1734252487691,20.0,218.03,217.96,8.07668031]
[1734252488793,20.0,218.03,217.95,8.07668031]
[1734252489113,20.0,218.03,217.9,8.07668031]
[1734252489114,0.12549,217.98,217.9,8.07668031]
[1734252489320,0.12549,217.98,217.91,30.0]
[1734252489888,0.12549,217.98,217.9,8.07668031]
[1734252490903,20.0,217.99,217.92,8.07668031]
[1734252491503,7.4805,218.03,217.93,8.07668031]
[1734252491718,20.0,218.0,217.94,8.07668031]
[1734252491890,7.4805,218.03,217.95,8.07668031]
[1734252492285,7.4805,218.03,217.94,8.07668031]
[1734252493599,7.4805,218.03,217.95,30.0]
[1734252497398,7.4805,218.03,217.93,8.07668031]
[1734252498312,7.4805,218.03,217.92,8.07668031]
[1734252498697,7.4805,218.03,217.93,8.07668031]
[1734252499103,7.4805,218.03,217.94,8.07668031]
[1734252499297,6.5633,218.03,217.94,8.07668031]
[1734252499898,6.5633,218.03,217.92,0.68812895]
[1734252500110,6.5633,218.03,217.93,8.07668031]
[1734252500922,6.5633,218.03,217.92,0.68812895]
[1734252501101,6.5633,218.03,217.92,8.07668031]
[1734252501707,6.5633,218.03,217.93,8.07668031]
[1734252502021,6.5633,218.03,217.94,30.0]
[1734252504026,6.5633,218.03,217.95,8.7647958]
[1734252504202,6.5633,218.03,217.96,8.07668031]
[1734252505305,20.0,218.04,217.96,8.07668031]
[1734252506536,20.0,218.04,217.97,30.0]
[1734252508210,20.0,218.05,217.98,8.07668031]
[1734252508609,20.0,218.05,217.99,8.07668031]
[1734252510410,20.0,218.05,217.94,1.5062]
[1734252510602,20.0,218.05,217.97,8.07668031]
[1734252513616,20.0,218.05,217.98,30.0]
[1734252516225,0.5663657,218.17,218.04,8.07668031]
[1734252516407,0.5663657,218.17,218.05,8.07668031]
[1734252516607,0.12549,218.16,218.05,8.07668031]
[1734252517002,0.5663657,218.17,218.05,8.07668031]
[1734252517526,0.12549,218.14,218.05,30.0]
[1734252517734,0.25098,218.14,218.05,30.0]
[1734252519354,0.5663657,218.17,218.05,30.0]
[1734252519355,0.5663657,218.17,218.09,8.07668031]
[1734252519509,0.5663657,218.17,218.1,8.07668031]
[1734252519708,0.5663657,218.17,218.09,0.68760788]
[1734252519910,0.5663657,218.17,218.06,0.68760286]
[1734252520124,0.5663657,218.17,218.08,8.07668031]
[1734252520314,0.5663657,218.17,218.09,8.07668031]
[1734252521321,0.5663657,218.17,218.09,8.76429025]
[1734252521548,0.5663657,218.17,218.09,8.07668031]
[1734252522762,0.5663657,218.17,218.06,8.07668031]
[1734252523239,0.5663657,218.17,218.07,8.07668031]
[1734252523827,0.5663657,218.17,218.08,8.07668031]
[1734252524029,0.5663657,218.17,218.12,8.07668031]
[1734252524230,0.5663657,218.17,218.08,1.634]
[1734252524231,0.5663657,218.17,218.14,8.07668031]
[1734252525232,0.5663657,218.17,218.15,8.07668031]
[1734252525416,0.5663657,218.17,218.16,8.07668031]
[1734252525959,0.5663657,218.17,218.15,8.07668031]
[1734252526459,0.5663657,218.17,218.14,8.07668031]
[1734252526642,0.5663657,218.17,218.1,0.68742606]
[1734252526643,0.5663657,218.17,218.13,38.07668031]
[1734252527059,0.5663657,218.17,218.14,8.07668031]
[1734252528345,0.5663657,218.17,218.15,8.07668031]
[1734252529158,0.5663657,218.17,218.14,8.07668031]
[1734252530046,0.5663657,218.17,218.15,30.0]
[1734252530944,0.5663657,218.17,218.16,8.07668031]
[1734252531942,0.5663657,218.17,218.16,38.07668031]
[1734252536488,0.5663657,218.17,218.16,30.0]
[1734252536860,0.5663657,218.17,218.16,38.07668031]
[1734252537664,0.5663657,218.17,218.16,61.85356431]
[1734252537871,0.5663657,218.17,218.16,38.07668031]
[1734252540001,0.5663657,218.17,218.16,30.0]
[1734252547294,0.5663657,218.17,218.16,38.07668031]
[1734252547866,0.5663657,218.17,218.16,38.76398569]
[1734252548674,0.5663657,218.17,218.16,62.54086969]
[1734252548874,0.5663657,218.17,218.16,30.0]
[1734252549487,0.5663657,218.17,218.16,38.07668031]
[1734252549805,0.5663657,218.17,218.16,8.07668031]
[1734252550983,0.5663657,218.17,218.14,8.07668031]
[1734252551776,0.5663657,218.17,218.15,8.07668031]
[1734252552090,0.5663657,218.17,218.16,8.07668031]
[1734252553970,0.5663657,218.17,218.16,38.07668031]
[1734252554977,0.5663657,218.17,218.16,30.0]
[1734252555790,0.5663657,218.17,218.16,38.07668031]
[1734252561329,0.5663657,218.17,218.16,8.07668031]
[1734252564401,0.5663657,218.17,218.16,38.07668031]
[1734252564800,0.5663657,218.17,218.16,30.0]
[1734252565106,0.5663657,218.17,218.16,38.07668031]
[1734252565418,0.5663657,218.17,218.16,30.0]
[1734252565992,0.5663657,218.17,218.16,38.07668031]
[1734252567310,0.5663657,218.17,218.16,30.0]
[1734252567713,0.5663657,218.17,218.15,8.07668031]
[1734252568091,0.5663657,218.17,218.11,23.776884]
[1734252568294,0.5663657,218.17,218.1,0.6874098]
[1734252568295,0.5663657,218.17,218.12,38.07668031]
[1734252568725,0.5663657,218.17,218.12,30.0]
[1734252569026,0.5663657,218.17,218.1,8.76409011]
[1734252569199,0.5663657,218.17,218.11,30.0]
[1734252570511,0.5663657,218.17,218.08,8.07668031]
[1734252573025,0.12549,218.16,218.05,0.68763837]
[1734252573208,0.12549,218.16,218.05,8.07668031]
[1734252573520,0.12549,218.16,218.07,30.0]